Cogmind - Beta 16 @@@ ROGUE MODE // 2025.10.22 @ 13:55:13 Player: H3-MLN Result: Destroyed by Y-64 Sentinel with Wave Gun Performance ------------- Evolutions (6) 3000 Regions Visited (18) 3600 Robots Destroyed (259) 1295 Value Destroyed (7797) 7797 Prototype IDs (65) 1300 Alien Tech Used (1) 200 Bonus (4077) 4077 TOTAL SCORE: 21269 Bonus ------- High Alert Combat Kills 534 Follower Combat Kills 611 Forged Quantum Companion 1000 Registered with UFD 300 Met Optimus in HQ 500 Met Imprinter 300 Met Warlord at Base 500 MAIN.C Attacked Warlord 500 Friendly Fire -168 Cogmind --------- Core Integrity 0/1150 Matter 300/300 Energy 594/700 System Corruption 2% Temperature Cool (9) Movement Core (100) Ox1 Location -4/Factory Parts ------- > --- POWER (3) -------- (None) > --- PROPULSION (6) --- (None) > --- UTILITY (8) ------ Experimental Energy Well Advanced Signal Interpreter Transport Network Coupler Core Analyzer Graphene Brace > --- WEAPON (4) ------- Quantum Companion > --- INVENTORY (5) ---- Advanced Sensor Array Experimental Actuator Array Authchip [Propulsion] Mobile Refinery Mk. CCLXVII Vortex Cannon (14) Peak State ------------ > --- POWER ------------ Makeshift Power Source Fission Core Meta Core > --- PROPULSION ------- Improved Titanium Leg Improved Titanium Leg Improved Titanium Leg Improved Titanium Leg Improved Titanium Leg Makeshift Leg Armored Leg Experimental Myomer Leg Experimental Myomer Leg > --- UTILITY ---------- Large Storage Unit Core Analyzer Femtoactuators Experimental Actuator Array Experimental Reaction Control System 1C-UTU's Buckler Tower Shield > --- WEAPON ----------- Makeshift Hammer Makeshift Hammer Makeshift Axe Companion Sword 1C-UTU's Sword "Lootmaker" 1C-UTU's Sword "Choppy" > --- INVENTORY -------- Makeshift Power Source Advanced Cooling System Experimental Energy Well Gravity Neutralizer Advanced Sensor Array Experimental Melee Analysis Suite Makeshift Transmission Jammer Enhanced Scrap Shield Improved Hacking Suite A0-MCA's Component Scanner Mobile Refinery Mk. CCLXVII Proton Missile Launcher Fusion Bomb Launcher Segregator [Rating: 179] Favorites ----------- Power Light Ion Engine Engine Light Ion Engine Power Core Meta Core Reactor Vortex Chain Reactor Propulsion Experimental Myomer Leg Treads Light Treads Leg Experimental Myomer Leg Wheel Compact Wheel Hover Unit Improved Hover Unit Flight Unit Surge Thruster Utility Core Analyzer Device Advanced Sensor Array Storage High-capacity Storage Unit Processor Core Analyzer Hackware Improved Hacking Suite Protection Powered Armor Weapon Companion Sword Energy Gun Subdweller Laser Energy Cannon Light EM Pulse Cannon Ballistic Gun Assault Rifle Ballistic Cannon Battle Cannon Launcher Fusion Bomb Launcher Special Weapon Improved Plasma Cutter Impact Weapon Makeshift Hammer Slashing Weapon Companion Sword Special Melee Weapon Improved Datajack Build | -11 -10 -10 -10 -9 -9 -6 -6 -6 -6 -6 -6 -5 -5 -5 -5 -5 -4 -4 ------- Run | Yrd Mat Min Sub Rec Scr Fac Was Fac Low Low Zio Pro Fac Upp Upp War Pro Fac Slots Evolved 12 | . . . . . . 8 . . . . . . 2 . . . . 2 Power 2 | . . . . . . 1 . . . . . . . . . . . 1 Propulsion 4 | . . . . . . 4 . . . . . . . . . . . . Utility 6 | . . . . . . 3 . . . . . . 2 . . . . 1 Weapon . | . . . . . . . . . . . . . . . . . . . Parts Attached 210 | 7 7 1 20 1 14 34 5 7 4 4 37 6 9 2 8 16 1 27 Power 25 | 1 1 . 1 1 2 8 . . . 1 5 . 1 . 1 . . 3 Engine 12 | 1 1 . 1 1 1 5 . . . . 2 . . . . . . . Core 10 | . . . . . 1 3 . . . 1 3 . 1 . 1 . . . Reactor 3 | . . . . . . . . . . . . . . . . . . 3 Propulsion 72 | 2 . . 8 . 4 15 2 3 . 2 15 2 3 . 1 5 . 10 Treads 4 | 2 . . 1 . . . . . . . . . . . . . . 1 Leg 31 | . . . . . . . . . . . 13 2 3 . 1 3 . 9 Wheel 9 | . . . 7 . 2 . . . . . . . . . . . . . Hover 12 | . . . . . . 8 . . . 1 2 . . . . 1 . . Flight 16 | . . . . . 2 7 2 3 . 1 . . . . . 1 . . Utility 75 | 2 2 1 3 . 5 10 1 3 4 . 11 4 5 2 4 6 1 11 Device 29 | 1 . 1 . . 1 5 1 1 3 . 6 3 . 1 1 3 . 2 Storage 13 | 1 2 . 2 . 2 1 . 1 . . 1 1 1 . . 1 . . Processor 15 | . . . . . . 4 . 1 . . 1 . 2 . 1 2 1 3 Hackware 4 | . . . . . . . . . . . . . 1 . 1 . . 2 Protection 14 | . . . 1 . 2 . . . 1 . 3 . 1 1 1 . . 4 Artifact . | . . . . . . . . . . . . . . . . . . . Weapon 38 | 2 4 . 8 . 3 1 2 1 . 1 6 . . . 2 5 . 3 Energy Gun 7 | 2 . . 2 . . . . . . . . . . . 1 2 . . Energy Cannon 5 | . 2 . 1 . 1 . . . . . . . . . . 1 . . Ballistic Gun 6 | . 2 . 4 . . . . . . . . . . . . . . . Ballistic Cannon 2 | . . . 1 . . . 1 . . . . . . . . . . . Launcher 4 | . . . . . . . . 1 . 1 . . . . . . . 2 Special Weapon 4 | . . . . . . 1 1 . . . . . . . . 1 . 1 Impact Weapon 2 | . . . . . . . . . . . 2 . . . . . . . Slashing Weapon 7 | . . . . . 1 . . . . . 4 . . . 1 1 . . Piercing Weapon . | . . . . . . . . . . . . . . . . . . . Special Melee Weapon 1 | . . . . . 1 . . . . . . . . . . . . . Unidentified Prototypes 28 | . . . . . 1 1 . 1 3 . 10 . . . . 11 . 1 Parts Lost 76 | . . 1 11 . . 12 . 1 . . 11 . 2 1 4 . . 33 Power 10 | . . . 2 . . 2 . . . . 3 . . . 1 . . 2 Propulsion 36 | . . . 5 . . 10 . 1 . . 5 . . . . . . 15 Utility 19 | . . 1 1 . . . . . . . 3 . 2 1 3 . . 8 Weapon 11 | . . . 3 . . . . . . . . . . . . . . 8 Highest Loss Streak 19 | . . 1 4 . . 3 . 1 . . 6 . 1 1 2 . . 19 To Critical Strikes 1 | . . . 1 . . . . . . . . . . . . . . . Average Backups 17 | 2 10 13 21 27 21 8 8 10 8 11 12 15 19 19 19 19 19 18 Power . | . 1 1 . . . . . . . . . 1 1 1 . . 1 1 Propulsion 2 | 1 2 3 5 7 4 . 1 1 1 1 1 . . . . . . . Utility 7 | . 1 1 4 6 4 5 5 7 5 7 8 11 12 12 12 12 12 12 Weapon 5 | . 5 8 9 13 9 1 1 1 1 2 1 3 4 5 5 5 5 4 Tool/Special . | . . . . . . . . . . . . . . . . . . . Unused Backups 42 | . . . . . 10 4 4 6 . . 2 1 3 . 1 4 . 7 Power 2 | . . . . . . . . . . . 1 . . . . . . 1 Propulsion 6 | . . . . . 3 1 2 . . . . . . . . . . . Utility 20 | . . . . . 1 3 1 5 . . . 1 2 . 1 1 . 5 Weapon 11 | . . . . . 4 . 1 . . . 1 . 1 . . 3 . 1 Tool/Special 3 | . . . . . 2 . . 1 . . . . . . . . . . Average Slot Usage (%) 84 | . 100 99 85 76 60 81 93 92 80 81 82 95 93 94 99 96 94 87 Engine 6 | . 14 14 13 8 10 9 . . . . 1 2 . . . . . . Core 4 | . . . . . 1 . 13 13 9 12 7 7 7 10 9 10 10 2 Treads 2 | . 28 28 2 . . . . . . . . . . . . . . . Leg 11 | . . . . . . . . . . . 17 33 30 31 31 30 31 24 Wheel 8 | . . . 25 28 21 . . . . . . . . . . . . . Hover 1 | . . . . . . 17 5 . . . 2 . . . . . . . Flight 6 | . . . . . 6 12 34 39 33 31 10 . . . . . . . Device 6 | . 14 13 . . 2 5 6 6 7 11 5 9 11 10 14 10 10 9 Storage 8 | . 14 14 14 14 12 6 6 6 4 6 4 3 4 5 5 8 6 4 Processor 6 | . . . . . . 19 20 20 16 12 8 3 3 5 6 10 11 17 Protection 2 | . . . . . 1 . . . 1 . 5 7 9 9 9 5 6 2 Energy Gun 1 | . 5 . 3 12 . . . . . . . . . . . . . . Energy Cannon 1 | . 7 . 3 . 2 . . . . . . . . . . . . . Ballistic Gun 4 | . 15 28 13 12 . . . . . . . . . . . . . . Ballistic Cannon 1 | . . . 7 . . . . . . . . . . . . . . . Slashing Weapon 7 | . . . . . . 6 6 6 6 6 8 15 16 21 20 17 15 14 Peak Build Rating 179 | 7 10 8 19 19 21 60 65 74 62 72 179 174 178 142 131 149 142 176 Average Rating 71 | 5 8 7 14 18 12 48 60 66 59 61 106 167 162 126 126 138 140 151 On Entrance 72 | . 7 8 8 17 15 21 59 61 63 61 64 172 159 126 124 126 141 139 Avg Prop Armor Cover (%) 5 | . . . . . 5 10 6 7 . 4 3 3 2 3 4 6 6 3 Naked Turns . | . . . . . . . . . . . . . . . . . . . Heaviest Build 211 | 12 54 50 211 209 203 26 27 36 35 47 120 130 141 95 103 92 92 130 Greatest Support 186 | 40 40 40 40 40 40 57 29 45 35 39 186 150 150 110 110 110 100 141 Greatest Overweight (x) 10 | . 1 1 10 5 10 2 1 1 1 1 2 1 1 . 1 . . 2 Average Overweight (x) 1 | . . 1 4 5 2 . . . . . . . . . . . . . Largest Inventory Capacity 35 | 8 20 20 35 35 35 10 10 15 15 15 15 20 20 20 20 20 20 20 Average Capacity 21 | 7 15 20 33 35 24 10 10 13 11 15 14 17 20 20 20 20 20 19 Most Carried 35 | 4 14 14 31 32 35 10 10 15 15 15 15 20 20 20 20 20 20 20 Average Carried 18 | 2 11 13 23 29 22 9 9 12 11 14 13 16 19 19 19 19 19 18 Final Capacity 35 | 8 20 20 35 35 10 10 10 15 15 15 15 20 20 20 20 20 20 5 Final Carried 32 | 4 14 13 27 32 10 10 10 15 15 15 15 20 20 20 20 20 20 5 Class Distribution -------------------- 28% | Hauler-Mutant 25% | Scavenger-Gladiator 17% | Scavenger-Mutant 12% | Mutant 9% | Scavenger-Sprinter Dominant Class ---------------- Mutant | -10/Materials Mutant | -10/Mines Hauler-Mutant | -10/Subcaves Hauler-Mutant | -9/Recycling Hauler-Mutant | -9/Scraptown Scavenger-Mutant | -6/Factory Scavenger-Mutant | -6/Waste Scavenger-Sprinter | -6/Factory Scavenger-Sprinter | -6/Lower Caves Scavenger-Sprinter | -6/Lower Caves Scavenger-Mutant | -6/Zion Scavenger-Mutant | -5/Proximity Caves Scavenger-Mutant | -5/Factory Scavenger-Gladiator | -5/Upper Caves Scavenger-Gladiator | -5/Upper Caves Scavenger-Gladiator | -5/Warlord Scavenger-Gladiator | -4/Proximity Caves Scavenger-Gladiator | -4/Factory Resources | -11 -10 -10 -10 -9 -9 -6 -6 -6 -6 -6 -6 -5 -5 -5 -5 -5 -4 -4 ----------- Run | Yrd Mat Min Sub Rec Scr Fac Was Fac Low Low Zio Pro Fac Upp Upp War Pro Fac Matter Collected 8042 | 237 235 67 495 152 144 474 90 68 97 99 3403 120 475 182 328 812 30 534 Remotely . | . . . . . . . . . . . . . . . . . . . Salvage Created 11024 | 40 338 56 418 305 . 2044 42 388 410 213 992 73 1108 446 1090 . . 3061 Parts 522 | 7 19 5 28 9 . 110 6 10 17 13 72 6 54 9 36 . . 121 Haulers Intercepted 10 | . 1 . . . . 3 . 2 1 . . . . . . . . 3 Recyclers Shooed 4 | . . . . 2 . 1 . . . . . . . . . . . 1 Parts Field Recycled . | . . . . . . . . . . . . . . . . . . . Retrieved Matter . | . . . . . . . . . . . . . . . . . . . Parts Self-Destructed 69 | . . . 14 . . . . . 12 4 . 4 . 15 20 . . . Prevented 2 | . . . . . . . . . . . . 2 . . . . . . Parts Restored . | . . . . . . . . . . . . . . . . . . . Kills | -11 -10 -10 -10 -9 -9 -6 -6 -6 -6 -6 -6 -5 -5 -5 -5 -5 -4 -4 ------- Run | Yrd Mat Min Sub Rec Scr Fac Was Fac Low Low Zio Pro Fac Upp Upp War Pro Fac Combat Hostiles Destroyed 150 | . 8 4 12 . . 21 1 3 5 5 11 2 21 3 21 . . 33 Melee 93 | . . . . . . 21 1 3 5 2 4 2 19 3 9 . . 24 Guns 21 | . 8 4 9 . . . . . . . . . . . . . . . Cannons 4 | . . . 2 . . . . . . . . . . . . . . 2 AOE 27 | . . . . . . . . . . 3 7 . . . 12 . . 5 Classes Destroyed 28 | 2 4 . 2 1 . 7 1 1 . 1 5 2 . . 1 . . 1 Worker 16 | 1 1 . . . . 10 . 1 . . . . . . . . . 3 Builder 6 | . . . . . . 4 . . . . . . 1 . . . . 1 Tunneler 2 | 1 . . . . . . . . . . . . 1 . . . . . Hauler 10 | . 1 . . . . 3 . 2 1 . . . . . . . . 3 Recycler 12 | . . . . 4 . 2 . . . . . . 1 . . . . 5 Mechanic 3 | . . . . . . 1 . . . . . . . . . . . 2 Operator 1 | . . . . . . 1 . . . . . . . . . . . . Drone 1 | . . . . . . . . . . . . 1 . . . . . . Turret 1 | . . . 1 . . . . . . . . . . . . . . . Watcher 9 | . 1 . . . . 5 . 1 . . . . 1 . . . . 1 Swarmer 52 | . 3 4 4 . . 7 . . . 4 . . 10 . 15 . . 5 Cutter 2 | . . . . . . 2 . . . . . . . . . . . . Saboteur 1 | . . . . . . . . 1 . . . . . . . . . . Grunt 45 | . 5 . . . . 9 . . 5 . . . 4 3 5 . . 14 Duelist 1 | . . . . . . 1 . . . . . . . . . . . . Sentry 6 | . . . . . . 1 . 2 . . . . 1 . 1 . . 1 Demolisher 1 | . . . . . . . 1 . . . . . . . . . . . Hunter 11 | . . . . . . . . . . . . 1 4 . . . . 6 Programmer 10 | . . . . . . 1 . . . 1 . . 2 . . . . 6 Heavy 1 | . . . . . . . . . . . . . . . . . . 1 Subdweller 8 | . . . 8 . . . . . . . . . . . . . . . Scrapoid 3 | . . . . . . . . . . . . . . . 3 . . . Zionite 45 | . . . . . . . . . . . 45 . . . . . . . Decomposer 4 | . . . . . . . . . . . . . . . 4 . . . Packrat 6 | . . . . . . . . . . . . . . 3 3 . . . Samaritan 5 | . . . . . . . . . . 3 . . . . 2 . . . Tinkerer 4 | . . . . . . . . . . . 4 . . . . . . . Wasp 1 | . . . . . . . . . . . 1 . . . . . . . Thug 1 | . . . . . . . . . . . 1 . . . . . . . Savage 4 | . . . . . . . . . . . 4 . . . . . . . Butcher 1 | . . . . . . . . . . . 1 . . . . . . . Marauder 2 | . . . . . . . . . . . 2 . . . . . . . Mutant 2 | . . . . . . . . . . . 2 . . . . . . . Best Kill Streak 14 | 1 3 2 2 4 . 7 1 3 6 4 5 1 5 3 10 . . 14 Combat Bots Only 14 | . 3 2 2 . . 6 1 1 5 4 1 1 5 3 10 . . 14 Max Kills in Single Turn 6 | 1 1 1 2 1 . 1 1 1 1 3 2 1 1 1 6 . . 5 Gunslinging 1 | . . . 1 . . . . . . . . . . . . . . . Exploded 4 | . . . . . . . . . . 3 1 . . . 3 . . 4 Melee 1 | . . . . . . 1 1 1 1 1 1 1 1 1 1 . . 1 Uniques/NPCs Destroyed 1 | . . . . . . . . . . . 1 . . . . . . . 1C-UTU (-6/Zion) Combat | -11 -10 -10 -10 -9 -9 -6 -6 -6 -6 -6 -6 -5 -5 -5 -5 -5 -4 -4 -------- Run | Yrd Mat Min Sub Rec Scr Fac Was Fac Low Low Zio Pro Fac Upp Upp War Pro Fac Hostile Shots Fired 1225 | . 28 44 136 . . 110 . 27 25 9 147 6 136 27 91 . . 439 Missed 451 | . 6 11 48 . . 46 . 18 15 4 70 4 56 6 33 . . 134 Deflected 5 | . . . . . . . . . . . . . . . . . . 5 Hits 774 | . 22 33 88 . . 64 . 9 10 5 77 2 80 21 58 . . 305 Melee 19 | . . . . . . 2 . . . . 16 . . . . . . 1 Projectile 755 | . 22 33 88 . . 62 . 9 10 5 61 2 80 21 58 . . 304 AOE 1 | . . . . . . 1 . . . . . . . . . . . . Critical Strikes 34 | . . 1 1 . . 2 . 1 1 . 6 . 4 . 1 . . 17 Actively Blocked 10 | . . . . . . . . . . . . . . . . . . 10 Part Disruptions 3 | . . . . . . . . 2 . . . . . . . . . 1 Damage Taken 13754 | . 235 261 1236 . . 1136 . 196 210 75 1545 21 1082 419 1001 . . 6337 Core 2391 | . 23 34 186 . . 387 . 11 14 45 258 . 133 57 71 . . 1172 Absorbed by Shields 500 | . . . . . . . . . . . . 7 282 . 13 . . 198 Ignored by Resistances 142 | . . . . . . . . . . . . . . . . . . 142 Regen/Repaired (Parts) 389 | . . . . . . 21 65 14 . . . . 76 . . 71 . 142 Core Remaining (%) 47 | 100 . . . . 2 . . . . . . 15 . . . . 73 . Volleys Fired 303 | 7 35 16 73 7 . 2 2 . . 1 129 . . 1 6 15 . 9 Largest 2 | 2 2 2 2 2 . 1 1 . . 1 1 . . 1 1 1 . 2 Hottest 112 | 90 90 40 112 85 . . . . . 52 52 . . 52 52 50 . 92 Shots Fired 423 | 14 69 32 128 14 . 2 2 . . 1 129 . . 1 6 15 . 10 Gun 211 | 14 69 32 82 14 . . . . . . . . . . . . . . Cannon 58 | . . . 46 . . . . . . . . . . . . 9 . 3 Launcher 144 | . . . . . . . . . . 1 129 . . 1 6 . . 7 Special 10 | . . . . . . 2 2 . . . . . . . . 6 . . Kinetic 154 | . 44 32 71 7 . . . . . . . . . . . . . . Thermal 74 | 14 25 . 28 7 . . . . . . . . . . . . . . Explosive 142 | . . . . . . . . . . 1 129 . . 1 6 . . 5 Electromagnetic 31 | . . . 29 . . . . . . . . . . . . . . 2 Entropic 12 | . . . . . . . . . . . . . . . . 9 . 3 Robot Hit Streak 19 | 10 12 3 19 4 . 6 8 . . . 7 . . . . 6 . 7 Robot Miss Streak 7 | 1 4 7 7 1 . . . . . . 2 . . . 1 . . 1 Penetration Max . | . . . . . . . . . . . . . . . . . . . Secondary Targets 5 | . 2 2 1 . . . . . . . . . . . . . . . Max Gunslinging Chain 1 | . 1 1 1 . . . . . . . . . . . . . . . Autonomous 6 | . . . . . . . . . . . . . . . . . . 6 Shots Hit Robots 555 | 11 37 12 69 9 2 90 5 12 10 8 83 2 51 15 30 6 . 103 Core Hits 344 | 3 17 4 24 6 . 43 2 5 10 6 87 2 23 7 34 . . 71 Critical Kills 1 | . . . . . . . . . . . . . . . . . . 1 Critical Parts Destroyed 3 | . . . . 1 . . . . . . . . 2 . . . . . Critical Strikes 23 | . 2 . . 1 . . . . . . 5 . 3 1 3 . . 8 Burn 2 | . 2 . . . . . . . . . . . . . . . . . Destroy 2 | . . . . 1 . . . . . . . . . . . . . 1 Smash 3 | . . . . . . . . . . . 1 . 2 . . . . . Sever 8 | . . . . . . . . . . . 2 . 1 1 1 . . 3 Melee Attacks 604 | . . . . . 2 111 4 20 15 17 103 13 102 39 45 7 . 126 Thermal 3 | . . . . . . . . . . . 3 . . . . . . . Impact 35 | . . . . . . . . . . . 13 3 19 . . . . . Slashing 563 | . . . . . . 110 4 20 15 17 87 10 83 39 45 7 . 126 Piercing . | . . . . . . . . . . . . . . . . . . . Sneak Attacks 72 | . . . . . 2 25 . 3 1 4 2 . 7 3 9 . . 16 Combat Hostiles 4 | . . . . . . 2 . . . . . . 1 . . . . 1 Follow-up Attacks 89 | . . . . . . . . . . . 26 2 31 5 9 . . 16 Damage Inflicted 32673 | 145 477 161 1280 151 . 4985 119 651 471 778 8415 81 2478 741 3027 . . 8713 Guns 1752 | 145 477 161 818 151 . . . . . . . . . . . . . . Cannons 974 | . . . 462 . . . . . . . . . . . . . . 512 Explosions 10084 | . . . . . . . . . . 259 5738 . . . 1385 . . 2702 Melee 19863 | . . . . . . 4985 119 651 471 519 2677 81 2478 741 1642 . . 5499 Ramming . | . . . . . . . . . . . . . . . . . . . Kinetic 1088 | . 255 161 603 69 . . . . . . . . . . . . . . Thermal 1545 | 145 222 . 358 82 . . . . . . . . . . . . . 738 Explosive 8949 | . . . . . . . . . . 259 5738 . . . 1385 . . 1567 Electromagnetic 716 | . . . 319 . . . . . . . . . . . . . . 397 Impact 619 | . . . . . . . . . . . 345 . 274 . . . . . Slashing 19244 | . . . . . . 4985 119 651 471 519 2332 81 2204 741 1642 . . 5499 Piercing . | . . . . . . . . . . . . . . . . . . . Phasic 512 | . . . . . . . . . . . . . . . . . . 512 Highest Corruption 4 | . 2 2 2 2 . 1 1 1 . . 4 . 3 3 3 3 . 2 Average Corruption 2 | . 1 2 2 2 . 1 1 1 . . 2 . 2 3 3 3 . 1 Corruption Purged 5 | . . . . . . . . 1 . . 4 . . . . . . . Corruption Blocked 3 | . . . . . . . . . . . . . . . . . . 3 Effects 131 | . 1 3 65 4 . 5 2 6 . . 14 . 2 12 17 . . . Message Errors 37 | . . 1 21 . . 1 . 2 . . 2 . 1 3 6 . . . Matter Fused 30 | . . 1 16 2 . 3 . . . . 4 . . 1 3 . . . Heat Flow Errors 19 | . 1 1 8 . . . 1 . . . 4 . . 1 3 . . . Energy Discharges 9 | . . . 4 . . . 1 1 . . . . . 1 2 . . . Parts Rejected 1 | . . . . . . . . . . . . . . . 1 . . . Parts Fused 4 | . . . 2 . . . . . . . . . . 1 1 . . . Data Loss (minor) 17 | . . . 8 1 . 1 . 2 . . 2 . . 2 1 . . . Data Loss (major) 10 | . . . 4 . . . . 1 . . 1 . 1 3 . . . . Misfires 1 | . . . 1 . . . . . . . . . . . . . . . Alerts 2 | . . . . 1 . . . . . . 1 . . . . . . . Weapon Failures 1 | . . . 1 . . . . . . . . . . . . . . . Overload Shots . | . . . . . . . . . . . . . . . . . . . Overflow Damage 2804 | . . . . . . 656 10 171 . 208 175 . 407 79 506 . . 592 Projectiles 84 | . . . . . . . . . . . . . . . . . . 84 Explosions 285 | . . . . . . . . . . 50 110 . . . 45 . . 80 Melee 2435 | . . . . . . 656 10 171 . 158 65 . 407 79 461 . . 428 Knockbacks 3 | . . . 1 . . . . . . . 1 . 1 . . . . . Impact 2 | . . . . . . . . . . . 1 . 1 . . . . . Kinetic 1 | . . . 1 . . . . . . . . . . . . . . . Secondary . | . . . . . . . . . . . . . . . . . . . Self-Inflicted Damage 214 | . . . . . . . . . . . 32 . . . 28 . . 154 Shots 6 | . . . . . . . . . . . 1 . . . 1 . . 4 Rammed . | . . . . . . . . . . . . . . . . . . . Targets Rammed . | . . . . . . . . . . . . . . . . . . . Kicked . | . . . . . . . . . . . . . . . . . . . Crushed . | . . . . . . . . . . . . . . . . . . . Highest Temperature 247 | 142 199 166 220 104 . 15 102 64 140 120 221 . . 172 247 54 . 40 Average Temperature 49 | 67 77 88 55 40 . 7 47 27 46 23 54 . . 68 105 27 . 16 Received Heat Transfer 1755 | . 105 . 306 . . 300 . 33 66 . 135 . 83 159 57 . . 511 Siege Activations . | . . . . . . . . . . . . . . . . . . . Martial Activations . | . . . . . . . . . . . . . . . . . . . Shielding Activations . | . . . . . . . . . . . . . . . . . . . Robots Disrupted 4 | . . . . . . . . . . . . . 2 . . . . 2 Combat Hostiles 3 | . . . . . . . . . . . . . 1 . . . . 2 Robots Corrupted 3 | . . . 1 . . . . . . . . . 2 . . . . . Combat Hostiles 3 | . . . 1 . . . . . . . . . 2 . . . . . Parts Fried 12 | . . . 4 . . . . . . . . . 8 . . . . . Impact Corruptions 5 | . . . . . . . . . . . 1 . 4 . . . . . Robots Melted . | . . . . . . . . . . . . . . . . . . . Combat Hostiles . | . . . . . . . . . . . . . . . . . . . Parts Melted 6 | . 3 . . . . . . . . . 1 . . . 1 . . 1 Heat Transferred 2152 | 384 743 . 450 100 . . . . . . . . . . . . . 475 Parts Sabotaged 2 | . . . . . . . . . . . . . . . . . . 2 Parts Stolen . | . . . . . . . . . . . . . . . . . . . Parts Stripped 14 | . . . . . . . . . . . . . . . . . . 14 Power Chain Reactions . | . . . . . . . . . . . . . . . . . . . Alert | -11 -10 -10 -10 -9 -9 -6 -6 -6 -6 -6 -6 -5 -5 -5 -5 -5 -4 -4 ------- Run | Yrd Mat Min Sub Rec Scr Fac Was Fac Low Low Zio Pro Fac Upp Upp War Pro Fac Maximum Alert Level 3 | . . . . . . 2 . 3 . . . . 3 . . . . 2 Low Security (%) 53 | 100 100 100 . 100 . 76 100 11 . . . . . . . . . 25 Level 1 10 | . . . . . . 18 . 8 . . . . 3 . . . . 24 Level 2 32 | . . . . . . 4 . 39 . . . . 95 . . . . 50 Level 3 4 | . . . . . . . . 41 . . . . . . . . . . Level 4 . | . . . . . . . . . . . . . . . . . . . Level 5 . | . . . . . . . . . . . . . . . . . . . High Security . | . . . . . . . . . . . . . . . . . . . Max Security . | . . . . . . . . . . . . . . . . . . . Peak Influence 819 | 5 71 81 . 114 . 464 198 819 . . . . 717 . . . . 574 Initial 600 | . 3 21 . 84 . . 158 33 . . . . 600 . . . . . Average 271 | . 12 28 . 83 . 151 121 569 . . . . 536 . . . . 358 Influence Increases 6493 | 10 232 100 220 110 . 1120 40 1292 105 120 15 35 1172 221 471 . . 1230 Destroy 0b10 Robot/C 3340 | . 160 80 100 . . 480 20 640 100 100 . 20 420 140 420 . . 660 Destroy 0b10 Robot/NC 335 | 10 15 . . 20 . 130 . 40 5 . 15 5 20 . . . . 75 Destroy Leader 584 | . 34 20 . . . 106 . 146 . 20 . 10 72 10 30 . . 136 Allied During Kill 342 | . . . . . . 17 20 228 . . . . . 71 6 . . . Successful Hack 141 | . 7 . . 14 . 67 . 12 . . . . 14 . . . . 27 Select Force Hacks 60 | . . . . 60 . . . . . . . . . . . . . . Disable Machine 90 | . . . . 15 . 15 . 30 . . . . . . . . . 30 Destroy Structure 236 | . 1 . . 1 . 20 . 46 . . . . 16 . . . . 152 Advance Influence 600 | . . . . . . . . . . . . . 600 . . . . . Partial Spotted 120 | . 15 . . . . 30 . 60 . . . . . . . . . 15 Lose Combat Pursuer 645 | . . . 120 . . 255 . 90 . . . . 30 . 15 . . 135 Influence Decreases 6018 | 5 182 155 43 223 64 668 444 669 379 282 250 35 652 591 463 158 . 755 Entered New Map 1442 | . 2 34 . 93 64 . 294 15 249 76 235 . . 193 29 158 . . Time Decay 3246 | 5 180 111 13 130 . 428 150 254 130 206 15 35 422 368 374 . . 425 Search Patrol Dispatched 200 | . . . . . . . . . . . . . 200 . . . . . Lost Part 570 | . . 10 30 . . 120 . 10 . . . . 20 10 40 . . 330 Lost Ally 560 | . . . . . . 120 . 390 . . . . 10 20 20 . . . Squads Dispatched 46 | . 1 . . . . 9 . 19 . . . . 6 . . . . 11 Investigation 19 | . . . . . . 4 . 6 . . . . 4 . . . . 5 Extermination 7 | . . . . . . 2 . 2 . . . . 1 . . . . 2 Reinforcement 10 | . 1 . . . . 3 . 3 . . . . . . . . . 3 Assault 3 | . . . . . . . . 2 . . . . 1 . . . . . Garrison 7 | . . . . . . . . 6 . . . . . . . . . 1 Intercept . | . . . . . . . . . . . . . . . . . . . Searches Triggered 2 | . . . . . . . . . . . . . 2 . . . . . Construction Impeded 2 | . . . . . . . . 1 . . . . . . . . . 1 Haulers Reinforced 2 | . . . . . . 1 . 1 . . . . . . . . . . Active Scanning Responses . | . . . . . . . . . . . . . . . . . . . Cargo Convoy Interrupts 2 | . . . . . . 1 . . . . . . . . . . . 1 Stealth | -11 -10 -10 -10 -9 -9 -6 -6 -6 -6 -6 -6 -5 -5 -5 -5 -5 -4 -4 --------- Run | Yrd Mat Min Sub Rec Scr Fac Was Fac Low Low Zio Pro Fac Upp Upp War Pro Fac Distress Signals 2 | . . . . . . . . 1 . . . . 1 . . . . . Communications Jammed 33 | . . . . . . . . . . . . 2 . . . . . 31 Distress Signals 21 | . . . . . . . . . . . . . . . . . . 21 Times Spotted 292 | . 13 6 17 . . 46 1 26 5 2 51 5 24 7 22 . . 67 Peak Tracking Total 22 | . 4 3 4 . . 7 . 5 5 1 5 2 5 5 5 . . 22 Tactical Retreats 37 | . . . 6 . . 11 . 3 . . 9 . 2 . 1 . . 5 Traps | -11 -10 -10 -10 -9 -9 -6 -6 -6 -6 -6 -6 -5 -5 -5 -5 -5 -4 -4 ------- Run | Yrd Mat Min Sub Rec Scr Fac Was Fac Low Low Zio Pro Fac Upp Upp War Pro Fac Traps Triggered 8 | . 1 . 2 . . 3 . 1 . . . . . . . . . 1 Indirectly . | . . . . . . . . . . . . . . . . . . . Trap Hack Attempts . | . . . . . . . . . . . . . . . . . . . Triggered . | . . . . . . . . . . . . . . . . . . . Disarmed . | . . . . . . . . . . . . . . . . . . . Reprogrammed . | . . . . . . . . . . . . . . . . . . . Reused . | . . . . . . . . . . . . . . . . . . . Traps Extracted . | . . . . . . . . . . . . . . . . . . . Installed . | . . . . . . . . . . . . . . . . . . . Triggered . | . . . . . . . . . . . . . . . . . . . Machines | -11 -10 -10 -10 -9 -9 -6 -6 -6 -6 -6 -6 -5 -5 -5 -5 -5 -4 -4 ---------- Run | Yrd Mat Min Sub Rec Scr Fac Was Fac Low Low Zio Pro Fac Upp Upp War Pro Fac Machines Disabled 13 | . . . 2 1 . 1 . 2 . . 4 . . . . 1 . 2 Max in Single Turn 2 | . . . 1 1 . 1 . . . . 2 . . . . 1 . 1 Garrison Access 1 | . . . . . . 1 . . . . . . . . . . . . Machines Repaired . | . . . . . . . . . . . . . . . . . . . Machines Dismantled . | . . . . . . . . . . . . . . . . . . . Machines Sabotaged . | . . . . . . . . . . . . . . . . . . . Overloaded Fab Kills . | . . . . . . . . . . . . . . . . . . . Hacking | -11 -10 -10 -10 -9 -9 -6 -6 -6 -6 -6 -6 -5 -5 -5 -5 -5 -4 -4 --------- Run | Yrd Mat Min Sub Rec Scr Fac Was Fac Low Low Zio Pro Fac Upp Upp War Pro Fac Machines Accessed 66 | . 2 . 2 5 1 18 . 15 . . . . 7 1 2 7 . 6 Terminals 26 | . 2 . . 2 . 9 . 6 . . . . 3 1 1 . . 2 Fabricators 5 | . . . . . . 1 . 2 . . . . . . . . . 2 Repair Stations 6 | . . . . . . 3 . 1 . . . . 1 . . . . 1 Recycling Units 12 | . . . . 3 . 2 . 4 . . . . 3 . . . . . Scanalyzers 5 | . . . . . . 2 . 2 . . . . . . . . . 1 Garrison Access 1 | . . . . . . 1 . . . . . . . . . . . . Total Hacks 161 | . 4 . 4 13 2 46 . 32 . . . . 15 1 2 19 . 23 Successful 83 | . 1 . 4 8 2 17 . 8 . . . . 8 1 2 19 . 13 Failed 77 | . 3 . . 5 . 28 . 24 . . . . 7 . . . . 10 Catastrophic 21 | . 1 . . 1 . 10 . 6 . . . . 2 . . . . 1 Database Lockouts 1 | . . . . . . 1 . . . . . . . . . . . . Manual 55 | . 4 . . 8 . 15 . 16 . . . . 4 . . . . 8 Terminals 53 | . 4 . . 5 . 23 . 10 . . . . 6 1 1 . . 3 Fabricators 13 | . . . . . . 1 . 5 . . . . . . . . . 7 Repair Stations 14 | . . . . . . 5 . 1 . . . . 3 . . . . 5 Recycling Units 26 | . . . . 8 . 4 . 8 . . . . 6 . . . . . Scanalyzers 28 | . . . . . . 12 . 8 . . . . . . . . . 8 Garrison Access 1 | . . . . . . 1 . . . . . . . . . . . . Terminal Hacks 36 | . 1 . 4 . 2 4 . 1 . . . . 1 1 2 19 . 1 Record 16 | . . . 3 . 1 . . . . . . . . 1 1 10 . . Part Schematic 1 | . 1 . . . . . . . . . . . . . . . . . Prototype ID Bank 7 | . . . . . . . . . . . . . . . . 7 . . Open Door 4 | . . . . . 1 . . . . . . . . . 1 2 . . Open DSF 1 | . . . . . . . . . . . . . . . . . . 1 Branch Access Points 1 | . . . . . . . . . . . . . 1 . . . . . Locate Traps 1 | . . . . . . 1 . . . . . . . . . . . . Hauler Manifests 1 | . . . . . . . . 1 . . . . . . . . . . Registered Components 1 | . . . . . . 1 . . . . . . . . . . . . Zone Layout 2 | . . . . . . 2 . . . . . . . . . . . . Proto ID Catalog 1 | . . . 1 . . . . . . . . . . . . . . . Fabricator Hacks 4 | . . . . . . . . 1 . . . . . . . . . 3 Network Status 2 | . . . . . . . . 1 . . . . . . . . . 1 Load Schematic 2 | . . . . . . . . . . . . . . . . . . 2 Repair Station Hacks 6 | . . . . . . 2 . . . . . . 2 . . . . 2 Scan Component 3 | . . . . . . 1 . . . . . . 1 . . . . 1 Repair 3 | . . . . . . 1 . . . . . . 1 . . . . 1 Recycling Unit Hacks 8 | . . . . 4 . . . 2 . . . . 2 . . . . . Report Inventory 6 | . . . . 3 . . . 2 . . . . 1 . . . . . Retrieve Components 2 | . . . . 1 . . . . . . . . 1 . . . . . Scanalyzer 13 | . . . . . . 7 . 1 . . . . . . . . . 5 Insert Component 5 | . . . . . . 3 . . . . . . . . . . . 2 Analyze 6 | . . . . . . 3 . . . . . . . . . . . 3 Retrieve Study 2 | . . . . . . 1 . 1 . . . . . . . . . . Garrison Access Hacks 1 | . . . . . . 1 . . . . . . . . . . . . Seal Access 1 | . . . . . . 1 . . . . . . . . . . . . Unauthorized Hacks 15 | . . . . 4 . 3 . 3 . . . . 3 . . . . 2 Terminals 4 | . . . . 2 . 2 . . . . . . . . . . . . Assimilate 1 | . . . . . . 1 . . . . . . . . . . . . Botnet 1 | . . . . . . 1 . . . . . . . . . . . . Skim 2 | . . . . 2 . . . . . . . . . . . . . . Fabricators 2 | . . . . . . . . . . . . . . . . . . 2 Recompile 2 | . . . . . . . . . . . . . . . . . . 2 Repair Stations . | . . . . . . . . . . . . . . . . . . . Recycling Units 9 | . . . . 2 . 1 . 3 . . . . 3 . . . . . Tunnel 2 | . . . . 2 . . . . . . . . . . . . . . Fedlink 5 | . . . . . . . . 3 . . . . 2 . . . . . Scrapoids 2 | . . . . . . 1 . . . . . . 1 . . . . . Scanalyzers . | . . . . . . . . . . . . . . . . . . . Garrison Access . | . . . . . . . . . . . . . . . . . . . Data Cores Recovered 2 | . . . . . . 1 . 1 . . . . . . . . . . Used 2 | . . . . . . 1 . 1 . . . . . . . . . . Hacking Detections 42 | . 2 . . 3 . 16 . 13 . . . . 4 . . . . 4 Full Trace Events 11 | . 1 . . 1 . 2 . 3 . . . . 1 . . . . 3 Feedback Events 2 | . 1 . . . . . . . . . . . 1 . . . . . Corruption 2 | . 1 . . . . . . . . . . . 1 . . . . . Feedback Blocked . | . . . . . . . . . . . . . . . . . . . Robot Schematics Acquired 4 | . . . . . . . . . . . 4 . . . . . . . Robots Built . | . . . . . . . . . . . . . . . . . . . Authchips . | . . . . . . . . . . . . . . . . . . . Time . | . . . . . . . . . . . . . . . . . . . Total Robot Build Rating . | . . . . . . . . . . . . . . . . . . . Part Schematics Acquired 20 | . 1 . . . . 3 . . . . 15 . . . . . . 1 Parts Built . | . . . . . . . . . . . . . . . . . . . Authchips . | . . . . . . . . . . . . . . . . . . . Time . | . . . . . . . . . . . . . . . . . . . Total Part Build Rating . | . . . . . . . . . . . . . . . . . . . Part Studies Acquired 2 | . . . . . . 1 . 1 . . . . . . . . . . Parts Repaired 3 | . . . . . . 1 . . . . . . 1 . . . . 1 Time 138 | . . . . . . 16 . . . . . . 68 . . . . 54 Parts Recycled . | . . . . . . . . . . . . . . . . . . . Recycled Matter . | . . . . . . . . . . . . . . . . . . . Retrieved Matter . | . . . . . . . . . . . . . . . . . . . Retrieved Components 5 | . . . . 3 . . . . . . . . 2 . . . . . Parts Scanalyzed 5 | . . . . . . 3 . . . . . . . . . . . 2 Part Schematics Acquired 4 | . . . . . . 3 . . . . . . . . . . . 1 Parts Damaged 1 | . . . . . . 1 . . . . . . . . . . . . Bothacking | -11 -10 -10 -10 -9 -9 -6 -6 -6 -6 -6 -6 -5 -5 -5 -5 -5 -4 -4 ------------ Run | Yrd Mat Min Sub Rec Scr Fac Was Fac Low Low Zio Pro Fac Upp Upp War Pro Fac Used RIF Installer . | . . . . . . . . . . . . . . . . . . . Robots Hacked 3 | . . . . . 2 1 . . . . . . . . . . . . Non-combat 1 | . . . . . . 1 . . . . . . . . . . . . Combat 2 | . . . . . 2 . . . . . . . . . . . . . Robot Hacks Applied 3 | . . . . . 2 1 . . . . . . . . . . . . parse_system 2 | . . . . . 2 . . . . . . . . . . . . . find_chute 1 | . . . . . . 1 . . . . . . . . . . . . Relay Couplers Released . | . . . . . . . . . . . . . . . . . . . Fabnet Peak Effective % . | . . . . . . . . . . . . . . . . . . . Robots Rewired 7 | . . . . . . 1 . . . . . . 1 . . 5 . . Allies Hacked . | . . . . . . . . . . . . . . . . . . . Hacks Repelled . | . . . . . . . . . . . . . . . . . . . Allies | -11 -10 -10 -10 -9 -9 -6 -6 -6 -6 -6 -6 -5 -5 -5 -5 -5 -4 -4 -------- Run | Yrd Mat Min Sub Rec Scr Fac Was Fac Low Low Zio Pro Fac Upp Upp War Pro Fac Total Allies 38 | . . . . . . 7 20 . . . . . 6 . . 5 . . Largest Group 20 | . . . . . . 5 20 20 . . . . 5 5 4 5 . . Highest-Rated Group 787 | . . . . . . 143 787 787 . . . . 235 235 188 267 . . Highest-Rated Ally 64 | . . . . . . 34 50 50 . . . . 47 47 47 64 . . Total Orders 5 | . . . . . . . . . . . . . 2 . . 3 . . STAY 1 | . . . . . . . . . . . . . 1 . . . . . FOLLOW 1 | . . . . . . . . . . . . . 1 . . . . . GUARD 2 | . . . . . . . . . . . . . . . . 2 . . AID 1 | . . . . . . . . . . . . . . . . 1 . . Ally Attacks 264 | . . . . . . 28 . 179 . . . . . 34 8 15 . . Total Damage 6562 | . . . . . . 432 . 4760 . . . . . 694 206 470 . . Kills 40 | . . . . . . 3 . 33 . . . . . 4 . . . . Allies Corrupted . | . . . . . . . . . . . . . . . . . . . Allies Melted 1 | . . . . . . . . 1 . . . . . . . . . . Intel | -11 -10 -10 -10 -9 -9 -6 -6 -6 -6 -6 -6 -5 -5 -5 -5 -5 -4 -4 ------- Run | Yrd Mat Min Sub Rec Scr Fac Was Fac Low Low Zio Pro Fac Upp Upp War Pro Fac Active Infowar (turns) 9270 | 40 681 292 102 . . 1244 315 557 149 406 266 409 1019 839 878 1087 246 740 Optics 176 | . . . . . . . . . . . . . 126 50 . . . . Sensors 5594 | . . . . . . 216 . . 147 406 266 409 687 820 818 1087 246 492 IFF 1 | . . . . . . 1 . . . . . . . . . . . . Structural 334 | . . 232 102 . . . . . . . . . . . . . . . Seismic 845 | 40 681 60 . . . . . . . . . 64 . . . . . . Decoding 2118 | . . . . . . 1244 315 557 2 . . . . . . . . . T.N.C. 230 | . . . . . . . . . . . . . . . . . . 230 Cloaking 412 | . . . . . . . . . . . . . . . . 1 242 169 Jamming 3681 | . . . . . . . . . . . . 114 1019 837 878 202 . 631 Robot Analysis Total . | . . . . . . . . . . . . . . . . . . . Derelict Logs Recovered 14 | . . . 3 . 5 . . . . 2 1 2 . . . . 1 . Drone Launches . | . . . . . . . . . . . . . . . . . . . Drone Recoveries . | . . . . . . . . . . . . . . . . . . . Decoded 0b10 Intel 32 | . . . . . . 21 . 11 . . . . . . . . . . Traps 27 | . . . . . . 20 . 7 . . . . . . . . . . Emergency Access 4 | . . . . . . . . 4 . . . . . . . . . . Garrisons 1 | . . . . . . 1 . . . . . . . . . . . . Exploration | -11 -10 -10 -10 -9 -9 -6 -6 -6 -6 -6 -6 -5 -5 -5 -5 -5 -4 -4 ------------- Run | Yrd Mat Min Sub Rec Scr Fac Was Fac Low Low Zio Pro Fac Upp Upp War Pro Fac Turns Passed 18423 | 117 681 310 3849 269 2452 1244 315 557 264 431 2350 430 1022 840 878 1087 246 1081 Spaces Moved 15624 | 48 279 109 2066 151 2104 1842 462 1391 590 698 1994 313 624 532 689 867 267 598 Core 5 | 4 . . . . . . . . . . . . . . . . . 1 Treads 563 | 44 279 109 131 . . . . . . . . . . . . . . . Legs 4512 | . . . . . . . . . . . 623 313 624 532 689 867 267 597 Wheels 3199 | . . . 1935 151 1113 . . . . . . . . . . . . . Hover 882 | . . . . . . 638 . . . . 244 . . . . . . . Flight 6463 | . . . . . 991 1204 462 1391 590 698 1127 . . . . . . . Fastest Speed 12 | 50 160 240 110 160 32 26 26 15 18 21 12 112 105 105 105 90 90 96 Average Speed 90 | 150 198 240 169 160 112 40 44 28 25 24 68 117 114 108 108 92 90 109 Slowest Speed 320 | 160 240 240 320 160 210 192 82 82 81 81 240 186 188 110 180 108 90 255 Overloaded Moves 9 | . . . . . . . . 5 3 . 1 . . . . . . . Propulsion Burnouts . | . . . . . . . . . . . . . . . . . . . Robots Hopped 3 | . . . . . 2 1 . . . . . . . . . . . . Potential Cave-ins . | . . . . . . . . . . . . . . . . . . . Cave-ins Triggered . | . . . . . . . . . . . . . . . . . . . Exploration Rate (%) 55 | 5 53 29 95 35 85 41 96 34 58 72 85 48 18 68 77 91 55 15 Regions Visited 18 Branch Regions 12 Pre-discovered Areas 7 | . . . 1 2 1 . . 1 . 1 1 . . . . . . . Known Exits Taken 5 | . . . . . . . . 1 1 1 . . 1 . . . 1 . Unknown Exits Taken 11 | 1 1 1 1 1 1 . . . . . 1 1 . 1 1 1 . . Scrap Searched 38 | . . . 9 . 6 . . . 1 4 2 5 . 2 4 . 5 . Spaces Dug 227 | . . . . . . 8 . 7 1 8 32 4 8 45 100 5 . 9 Terrain Destroyed 1113 | . . . . . . 8 . 7 1 41 791 4 8 45 107 10 . 91 Melee 57 | . . . . . . 8 . 7 1 8 . 4 8 14 . 1 . 6 Projectile 12 | . . . . . . . . . . . . . . . . 9 . 3 AOE 1044 | . . . . . . . . . . 33 791 . . 31 107 . . 82 Terrain Rammed . | . . . . . . . . . . . . . . . . . . . Walls Destroyed . | . . . . . . . . . . . . . . . . . . . Machines Disabled . | . . . . . . . . . . . . . . . . . . . Actions | -11 -10 -10 -10 -9 -9 -6 -6 -6 -6 -6 -6 -5 -5 -5 -5 -5 -4 -4 --------- Run | Yrd Mat Min Sub Rec Scr Fac Was Fac Low Low Zio Pro Fac Upp Upp War Pro Fac Total 18913 | 75 335 126 2289 166 2177 2181 566 1523 684 929 2774 364 904 761 772 1136 271 880 Wait 1629 | 10 3 1 55 1 29 120 74 66 53 200 368 18 168 186 13 181 . 83 Move 15602 | 47 278 108 2065 150 2100 1840 461 1390 589 697 1993 312 623 531 688 866 266 598 Hop 2 | . . . . . 1 1 . . . . . . . . . . . . Pick Up 222 | 4 10 . 59 5 14 11 6 11 10 2 37 6 12 3 6 8 1 17 Fast Attach 161 | 7 . . 2 1 12 26 3 4 8 2 48 1 6 1 8 19 . 13 Attach 93 | . . 1 14 . 2 8 2 . 1 2 31 1 5 2 3 3 . 18 Detach 35 | . . . 1 . 1 3 1 . . 2 23 . 1 . . 2 . 1 Swap 136 | . 7 . 11 . 2 10 4 6 . 2 18 12 12 10 10 5 3 24 Drop 209 | . 2 . 9 2 14 19 9 15 8 4 53 7 15 2 9 30 1 10 Fire 303 | 7 35 16 73 7 . 2 2 . . 1 129 . . 1 6 15 . 9 Melee 470 | . . . . . 2 111 4 20 15 17 74 7 53 25 29 6 . 107 Ram . | . . . . . . . . . . . . . . . . . . . Kick . | . . . . . . . . . . . . . . . . . . . Crush . | . . . . . . . . . . . . . . . . . . . Escape Stasis 26 | . . . . . . 15 . 11 . . . . . . . . . . Rewire 25 | . . . . . . 15 . . . . . . 9 . . 1 . . Trap . | . . . . . . . . . . . . . . . . . . . Miscellaneous . | . . . . . . . . . . . . . . . . . . . Route ------- -11/Scrapyard -10/Materials (discovered 2 exits: [*Mat] / [*Min]) -10/Mines (discovered 2 exits: [*Mat] / *Sub) -10/Subcaves (discovered 3 exits: [*Mat x2] / *Rec) -9/Recycling -9/Scraptown (discovered 2 exits: *Fac x2) -6/Factory (discovered 2 exits: *Fac / *Low) -6/Waste -6/Factory (discovered 2 exits: *Fac / *Low) -6/Lower Caves -6/Lower Caves -6/Zion -5/Proximity Caves -5/Factory (discovered 2 exits: *Upp x2) -5/Upper Caves -5/Upper Caves -5/Warlord -4/Proximity Caves -4/Factory (discovered 2 exits: Res / Ext) History --------- Turn | Location | Event 45 | -11/Scrapyard | Discovered new exit (range 14) 118 | -11/Scrapyard | Entered Materials 316 | -10/Materials | Build established: Mutant 639 | -10/Materials | Discovered new exit (range 3) 748 | -10/Materials | Discovered new exit (range 11) 799 | -10/Materials | Entered Mines 912 | -10/Mines | Discovered new exit (range 9) 1029 | -10/Mines | Discovered new exit (range 9) 1109 | -10/Mines | Entered Subcaves 1248 | -10/Subcaves | Lost 4 parts (1p1n1u1w) 1773 | -10/Subcaves | Build established: Hauler-Mutant 2047 | -10/Subcaves | Disturbed a concealed Subdweller 2354 | -10/Subcaves | Core integrity fell below 50% 2394 | -10/Subcaves | Discovered new exit (range 15) 2469 | -10/Subcaves | Shifting Twisted Machinery released Mak. Light Armor Plating 2476 | -10/Subcaves | Shifting Twisted Machinery released Sub. Monowheel 3163 | -10/Subcaves | Visited Clippyterm 3168 | -10/Subcaves | Learned Research machine intel 3186 | -10/Subcaves | Learned location of Mines (-9) 3200 | -10/Subcaves | Learned Materials stockpile data 3209 | -10/Subcaves | Learned Materials terminal intel 3361 | -10/Subcaves | Visited 4L-MR0's lab 3377 | -10/Subcaves | Found Tower Shield 3483 | -10/Subcaves | Discovered new exit (range 9) 3484 | -10/Subcaves | Shifting Twisted Machinery released Sub. Laser 3498 | -10/Subcaves | Shifting Twisted Machinery released Battle Rifle 4057 | -10/Subcaves | A Subdweller sparked back to life 4057 | -10/Subcaves | A Subdweller sparked back to life 4111 | -10/Subcaves | Found Meta Core 4752 | -10/Subcaves | Core integrity fell below 20% 4800 | -10/Subcaves | Discovered new exit (range 10) 4958 | -10/Subcaves | Entered Recycling 5186 | -9/Recycling | Scanned before Scraplab entrance 5213 | -9/Recycling | Entered Scraplab 5226 | -9/Recycling | Discovered new exit (range 2) 5227 | -9/Recycling | Entered Scraptown 5227 | -9/Scraptown | System corruption cleaned by C-Scrubber 5523 | -9/Scraptown | Heard Great Nut preacher, LISTEN AND RECITE! 5525 | -9/Scraptown | Visited SPCMW 5542 | -9/Scraptown | Visited TADAMA 5612 | -9/Scraptown | Scanned Subdweller tech in exchange for log data 5616 | -9/Scraptown | Learned Research stockpile data 5624 | -9/Scraptown | Learned Factory emergency access door positions 5645 | -9/Scraptown | Discovered new exit (range 11) 6019 | -9/Scraptown | Learned location of Extension (-4) 6068 | -9/Scraptown | Visited Spacefarers 6080 | -9/Scraptown | Visited CPS Storage 6095 | -9/Scraptown | Visited Cave Peace 6135 | -9/Scraptown | Visited Red Mages 6249 | -9/Scraptown | Visited UFD Registry 6249 | -9/Scraptown | Registered with UFD as "Phaseslasher" 6296 | -9/Scraptown | Visited Curators Association 6334 | -9/Scraptown | Visited Derelict Rescue Squad 6382 | -9/Scraptown | Visited Sword Containment 6407 | -9/Scraptown | Visited A0-MCA Data Center 6431 | -9/Scraptown | Visited DA-N13 Charitable Foundation 6448 | -9/Scraptown | Found DCF Scrap (29 items) 6483 | -9/Scraptown | Visited Supply Room 6505 | -9/Scraptown | Visited Junk Repository 6562 | -9/Scraptown | Visited Chapter 10 6627 | -9/Scraptown | Visited Infowarlord's Domain 6771 | -9/Scraptown | Delivered Scrap Shield to a Scientist 7008 | -9/Scraptown | Given a B+ rating by A0-MCA 7012 | -9/Scraptown | Found A0-MCA's Component Scanner 7015 | -9/Scraptown | Build established: Mutant 7635 | -9/Scraptown | Met Optimus 7635 | -9/Scraptown | Accepted into 0bPrime 7678 | -9/Scraptown | Discovered new exit (range 5) 7679 | -9/Scraptown | Civil war broke out across Scraptown 7679 | -9/Scraptown | Entered Factory 7679 | -6/Factory | Evolved 8 slots: Power x1, Propulsion x4, Utility x3 7743 | -6/Factory | Discovered new exit (range 14) 7924 | -6/Factory | Attached CPS modules to Administrator 5a. 8060 | -6/Factory | Repaired VTOL Module 8117 | -6/Factory | Spotted B-75 Beast 8212 | -6/Factory | Central database locked down 8301 | -6/Factory | Discovered new exit (range 3) 8303 | -6/Factory | Scrapoids reinforcements arrived? 8349 | -6/Factory | Attached CPS modules to Grenadier 5a. 8484 | -6/Factory | Build established: Scavenger-Mutant 8538 | -6/Factory | Cargo convoy interrupted 8730 | -6/Factory | Lost 3 parts (3n) 8861 | -6/Factory | Lost 3 parts (3n) 8923 | -6/Factory | Sucked down chute 8923 | -6/Factory | Entered Waste 8924 | -6/Waste | Joined by Warlord forces that had cleared the area 8928 | -6/Waste | Attached CPS modules to D-53 Grenadier. 8972 | -6/Waste | Found Fusion Bomb Launcher 9000 | -6/Waste | Discovered new exit (range 13) 9009 | -6/Waste | Attached CPS modules to JX-8CM(s). 9238 | -6/Waste | Entered Factory 9238 | -6/Factory | Accompanied by 20 allies 9257 | -6/Factory | Discovered new exit (range 12) 9296 | -6/Factory | Garrison activated, responded to threat 9313 | -6/Factory | Loaded intel: 8 recycling unit locations 9365 | -6/Factory | Lost 5 allies 9505 | -6/Factory | Learned location of Protoforge (-3) 9574 | -6/Factory | Garrison activated, responded to threat 9588 | -6/Factory | First assault squad dispatched 9623 | -6/Factory | Discovered new exit (range 6) 9794 | -6/Factory | Identified exit to Lower Caves 9795 | -6/Factory | Entered Lower Caves 9797 | -6/Lower Caves | UFD Scientist delivered a prototype 9798 | -6/Lower Caves | Found Prototype Protection 9798 | -6/Lower Caves | Identified Enh. Scrap Shield 9936 | -6/Lower Caves | Encountered a Warlord checkpoint 9990 | -6/Lower Caves | Build established: Scavenger-Sprinter 10047 | -6/Lower Caves | Discovered new exit (range 14) 10054 | -6/Lower Caves | Found Alien Artifact 10054 | -6/Lower Caves | Identified Core Expander 10054 | -6/Lower Caves | Installed Core Expander, added new Weapon slot 10059 | -6/Lower Caves | Identified exit to Lower Caves 10059 | -6/Lower Caves | Entered another Lower Caves area 10060 | -6/Lower Caves | Encountered a Warlord checkpoint 10419 | -6/Lower Caves | Core integrity fell below 50% 10440 | -6/Lower Caves | Learned Factory stockpile data 10460 | -6/Lower Caves | Discovered new exit (range 8) 10466 | -6/Lower Caves | Identified exit to Zion 10490 | -6/Lower Caves | Entered Zion 10505 | -6/Zion | Found Prototype Device 10505 | -6/Zion | Identified Bomb Factory No. 2 10513 | -6/Zion | Discovered new exit (range 10) 10541 | -6/Zion | Learned location of Armory (-3) 10579 | -6/Zion | Learned 8 Factory zone layouts 10619 | -6/Zion | Turned away by Imprinter 10662 | -6/Zion | Found Prototype Device 10662 | -6/Zion | Identified Mobile Refinery Mk. CCLXVII 10892 | -6/Zion | Attacked by Zionites 11073 | -6/Zion | Build established: Scavenger-Mutant 11717 | -6/Zion | 1C-UTU came to Zion's defense 11752 | -6/Zion | Core integrity fell below 20% 11782 | -6/Zion | Lost 6 parts (1p3n2u) 11794 | -6/Zion | Found Prototype Slashing Weapon 11794 | -6/Zion | Identified 1C-UTU's Sword "Choppy" 11797 | -6/Zion | Found Prototype Slashing Weapon 11797 | -6/Zion | Identified 1C-UTU's Sword "Lootmaker" 11876 | -6/Zion | Destroyed 1C-UTU 11889 | -6/Zion | Found Prototype Protection 11889 | -6/Zion | Identified 1C-UTU's Buckler 11910 | -6/Zion | Found Prototype Device 11910 | -6/Zion | Identified Femtoactuators 11917 | -6/Zion | Found Prototype Processor 11987 | -6/Zion | Attached Meta Core, gained temporary slots: Propulsion, Utility, Weapon 11988 | -6/Zion | Attached Tower Shield, gained temporary slots: Power, Propulsion x2, Utility x2, Weapon x2 11998 | -6/Zion | Found Prototype Device 11998 | -6/Zion | Identified Exp. Actuator Array 12168 | -6/Zion | Build established: Scavenger-Gladiator 12651 | -6/Zion | Spotted DI-X7A(B) 12726 | -6/Zion | Spotted UN-I5F(B) 12740 | -6/Zion | Destroyed DI-X7A(B) 12761 | -6/Zion | Destroyed UN-I5F(B) 12840 | -6/Zion | Entered Proximity Caves 12908 | -5/Proximity Caves | Spotter reported a threat 12961 | -5/Proximity Caves | Spotter reported a threat 12991 | -5/Proximity Caves | Spotter reported a threat 13070 | -5/Proximity Caves | Build established: Scavenger-Mutant 13112 | -5/Proximity Caves | Learned Factory trap positions 13189 | -5/Proximity Caves | Discovered new exit (range 8) 13204 | -5/Proximity Caves | Learned Factory stockpile data 13253 | -5/Proximity Caves | Spotter reported a threat 13270 | -5/Proximity Caves | Entered Factory 13270 | -5/Factory | Evolved 2 slots: Utility x2 13271 | -5/Factory | Identified exit to Upper Caves 13273 | -5/Factory | Loaded intel: 115 trap records 13381 | -5/Factory | Repaired Fusion Bomb Launcher? 13535 | -5/Factory | Found Powered Armor 13570 | -5/Factory | Search patrols dispatched 13682 | -5/Factory | Loaded intel: 8 recycling unit locations 13870 | -5/Factory | Search patrols dispatched 14170 | -5/Factory | First assault squad dispatched 14201 | -5/Factory | Scrapoid reinforcements arrived 14292 | -5/Factory | Entered Upper Caves 14292 | -5/Upper Caves | Accompanied by 5 allies 14513 | -5/Upper Caves | Build established: Scavenger-Gladiator 14519 | -5/Upper Caves | Attracted the attention of an 0b10 checkpoint 15054 | -5/Upper Caves | Discovered new exit (range 15) 15071 | -5/Upper Caves | Found DCF Scrap (11 items) 15081 | -5/Upper Caves | Entered a destroyed Warlord outpost 15132 | -5/Upper Caves | Entered another Upper Caves area 15132 | -5/Upper Caves | Accompanied by 4 allies 15296 | -5/Upper Caves | Lost 4 allies 15322 | -5/Upper Caves | Destroyed 10 combat bots 15350 | -5/Upper Caves | Attracted the attention of an 0b10 checkpoint 15982 | -5/Upper Caves | Discovered new exit (range 5) 16010 | -5/Upper Caves | Entered Warlord 16046 | -5/Warlord | System corruption cleaned by Quarantine Array 16213 | -5/Warlord | Found Prototype Device 16213 | -5/Warlord | Identified Exp. Cloaking Device 16221 | -5/Warlord | Found Prototype Device 16221 | -5/Warlord | Identified Exp. Focal Shield 16224 | -5/Warlord | Found Prototype Processor 16224 | -5/Warlord | Identified Exp. Target Analyzer 16255 | -5/Warlord | Found Prototype Reactor 16258 | -5/Warlord | Identified Exp. Melee Analysis Suite 16475 | -5/Warlord | Learned Testing emergency access door positions 16476 | -5/Warlord | Learned 4 Access zone layouts 16476 | -5/Warlord | Learned 4 Testing zone layouts 16477 | -5/Warlord | Learned Research security intel 16477 | -5/Warlord | Learned Factory terminal intel 16477 | -5/Warlord | Learned Factory recycling unit intel 16566 | -5/Warlord | Warlord's base attacked by MAIN.C 16620 | -5/Warlord | Found Prototype Energy Cannon 16620 | -5/Warlord | Identified Vortex Cannon 16625 | -5/Warlord | Found Prototype Energy Gun 16625 | -5/Warlord | Identified Vortex Rifle 16707 | -5/Warlord | Rebuked by Warlord 16842 | -5/Warlord | Build established: Commander-Gladiator 16916 | -5/Warlord | Warlord forces counterattacked 16923 | -5/Warlord | Lost 6 allies 17003 | -5/Warlord | Opened side exit 17039 | -5/Warlord | Spotted Striker 17087 | -5/Warlord | Discovered new exit (range 13) 17097 | -5/Warlord | Entered Proximity Caves 17108 | -4/Proximity Caves | Lost 18 allies 17175 | -4/Proximity Caves | Build established: Scavenger-Gladiator 17258 | -4/Proximity Caves | Learned Research terminal intel 17305 | -4/Proximity Caves | Discovered new exit (range 10) 17324 | -4/Proximity Caves | Identified exit to Factory 17343 | -4/Proximity Caves | Entered Factory 17343 | -4/Factory | Evolved 2 slots: Power x1, Utility x1 17344 | -4/Factory | Identified exit to Research 17344 | -4/Factory | Identified exit to Extension 17344 | -4/Factory | Identified Vortex Chain Reactor 17346 | -4/Factory | Loaded intel: 28 terminal locations 17347 | -4/Factory | Loaded intel: 8 recycling unit locations 17374 | -4/Factory | Identified exit to DSF 17724 | -4/Factory | Repaired Exp. Myomer Leg 17863 | -4/Factory | Lost 3 parts (1n1u1w) 17867 | -4/Factory | Forged Quantum Companion 17969 | -4/Factory | Destroyed 14 combat bots 18088 | -4/Factory | Lost 6 parts (4n1u1w) 18416 | -4/Factory | Garrison activated, responded to threat 18417 | -4/Factory | Cargo convoy interrupted 18417 | -4/Factory | Spotted Executioner 18419 | -4/Factory | Core integrity fell below 50% 18422 | -4/Factory | Core integrity fell below 20% 18424 | -4/Factory | Destroyed by Y-64 Sentinel with Wave Gun Last Messages --------------- area. 18420_ ALERT: Construction progress impeded, dispatching reinforcements to local area. 18421_ U-05 Engineer lays Concrete. 18421_ Penetrated by Slug. 18421_ Fusion Bomb Launcher destroyed. 18421_ Knocked back. 18421_ Hcp. Storage Unit destroyed. 18422_ U-05 Engineer builds a Wall. 18422_ Acquired Hvy. Shock Bomb Launcher. 18422_ U-05 Engineer lays Concrete. 18422_ Hvy. Shock Bomb Launcher destroyed. 18423_ P-70 Sage resets A-27 Freighter, system corruption cleaned. 18423_ Penetrated by Slug. 18423_ U-05 Engineer lays Concrete. 18423_ Extracted 25 matter. 18423_ Penetrated by Slug. 18423_ Slug penetrates G-67 Veteran. 18423_ Penetrated by Slug. 18423_ G-67 Veteran destroyed. Map ----- +----------------------------------------------------+ | ??????????""?????????????????????????????????????? | | ??????????T"?????????????????????????????????????? | | ??????????""?????????????????????????????????????? | | ?????????????????????????????????????????????????? | | ?????????????????????????????????????????????????? | | ?????????????????????????????????????????????????? | | ?????????????????A???????????????????????????????? | | ?????????????????????????????????????????????????? | | ?????????????????????????????????????????????????? | | ?????????????????????????????????????????????????? | | ???????????????????/?????????????????????????????? | | ??????????????????? ?????????????????????????????? | | ??????????????????# ?????????????????????????????? | | ??????????????????# ?????????????????????????????? | | ??????????????????# #????????????????????????????? | | ???????????? ??## #####????????????????????????? | | ???????????? u ## k ????????????????????????? | | ???????????? # = ????????????????????????? | | ????????????? % ????????????????????????? | | ??????????""T"" * ###??????????????????????? | | ??????????""""" %= ###????????????????????? | | ???????????????# =%%% ######???????????????? | | ????????######## x %=[ h ""G"" #??????????????? | | ???????? p! xh ""g"" #??????????????? | | ?????# E h A Ygg #??????????????? | | ?????# """ """ H !h!!@ !g*g #??????????????? | | ?????# """ """ =*h !! !! %=g! #??????????????? | | ?????# """ """ %p%% !!*;;=+#####??????????????? | | ?????#! ;%u|# ###????????????????? | | ?????# / %# #= # #????????????????? | | ?????#######;#;"##% # # #????????????????? | | ????????????# # # #????????????????? | | ?????????!??# * + # #????????????????? | | ?????????! " " # # ###############??? | | ??????? # "Y # # ## ? # | | ??????[ # # # # !!! """""" # | | ??????#####?# ] + # ## !! """""" # | | ????????????# ##### ##" ! """""" # | | ????????????# ######## ###?# """""" # | | ##??????????# ## * ! ###???# # | | ??? #?????# ##"### #?????#| """ # | | ? #?????# # ??# """ #?????# """ # | | """ #?????# #?#??# """ #?????# """ # | | """ #?????+ #????# """ #?????# # | | """ #?????# #????# #?????# # | | "" #?????# #????# """ #????## = # | | "" #??!??# #????# """ #################+## | | #?????# #????# """ ## | | #?????# #????# + | | #######?????# #????# ## """ """ " | +----------------------------------------------------+ Best States ------------- Heat Dissipation 67 Energy Generation 75 Energy Capacity 990 Matter Stores 550 Matter Capacity 550 Sight Range 18 Robot Scan Range 16 Terrain Scan Density 10 Jamming Range 14 Cloak Strength 4 Additional Mass Support 12 Corruption Block 15 Armor Coverage 3000 Resistance: KI 30 Melee Speed Boost 50 Evasion (%) 69 Melee Accuracy 12 Core Analysis 6 Recoil Reduction 2 Offensive Hacking 12 Defensive Hacking 14 Authchip Count 2 Item Schematics ----------------- Cargo Storage Unit | -10/Materials | Hacked Hacking Suite | -6/Factory | Scanalyzed CPS Tube | -6/Factory | Scanalyzed Gravity Neutralizer | -6/Factory | Scanalyzed Coil Gun | -6/Zion | Archive Arm. Medium Treads | -6/Zion | Archive Mni. Drone Bay | -6/Zion | Archive System Guard | -6/Zion | Archive Imp. Launcher Guidance Computer | -6/Zion | Archive Adv. Signal Interpreter | -6/Zion | Archive Imp. Antigrav System | -6/Zion | Archive Adv. Shield Generator | -6/Zion | Archive Lrn. Missile Launcher | -6/Zion | Archive Imp. System Restoration Module | -6/Zion | Archive Adv. Plasma Cannon | -6/Zion | Archive Drone Bay | -6/Zion | Archive Hyp. Coil Gun | -6/Zion | Archive Lgt. Fission Core | -6/Zion | Archive Adv. Reaction Control System | -6/Zion | Archive Exp. Actuator Array | -4/Factory | Scanalyzed Robot Schematics ------------------ T-07 Excavator | -6/Zion | Archive M-22 Extractor | -6/Zion | Archive G-50 Soldier | -6/Zion | Archive Y-72 Warden | -6/Zion | Archive Fabricated ------------ Nothing Repaired ---------- VTOL Module | 16% | -6/Factory Fusion Bomb Launcher | 33% | -5/Factory Exp. Myomer Leg | 36% | -4/Factory Studied --------- Nuclear Pulse Thruster | -6/Factory | Hacked Surge Thruster | -6/Factory | Hacked Alien Tech Used ----------------- Core Expander Achievements -------------- Friends Forever Metal Spider Challenges ------------ None Game ------ Seed RocketGatlingDisplacer Manual? 0 Play Time 05:28:39 Cumulative 975.2 hours Start 2025.10.21 @ 02:35:56 End 2025.10.22 @ 13:55:13 Sessions 7 Manual Loads 0 Difficulty Rogue Special Mode None Game No. 355 Rogue 350 Adventurer 4 Explorer 1 Win Type - Total 19 Types 13/1/1/1/0/1/0/0/1/1 Lore% 96 Gallery% 92 Achievement% 76 Wizard Run 0 Options --------- Layout 0 ASCII 0 Keyboard 0 Movement Numpad Keybinds 0 Fullscreen 2 Font 18/SmallcapsGlow Map View 76x50 Zoom Use 6% Tactical HUD 1 Map Filters NONE Filters NONE Steam 1 RUN: d5b6d566-ae8a-4844-a771-0759ba57b65e